lending/lending_fUSD_20240605
["ID","MTS","AMOUNT","RATE_DAILY","PERIOD"]
[328571331,1717546247050,-500.0,0.00029589,6]
[328571332,1717546247060,-500.0,0.00029589,6]
[328571333,1717546247069,-580.47727686,0.00029589,6]
[328571334,1717546247078,-500.0,0.00029589,6]
[328571335,1717546247087,-500.0,0.00029589,6]
[328571336,1717546247096,-500.0,0.00029589,6]
[328571337,1717546247105,-500.0,0.00029589,6]
[328571338,1717546247114,-500.0,0.00029589,6]
[328571339,1717546247123,-500.0,0.00029589,6]
[328571340,1717546247132,-500.0,0.00029589,6]
[328571341,1717546247141,-348.02,0.00029589,6]
[328571342,1717546247150,-500.0,0.00029589,6]
[328571343,1717546247159,-500.0,0.00029589,6]
[328571344,1717546247169,-500.0,0.00029589,6]
[328571345,1717546247177,-500.0,0.00029589,6]
[328571346,1717546247186,-355.87639063,0.00029589,6]
[328571347,1717546247195,-500.0,0.00029589,6]
[328571348,1717546247204,-500.0,0.00029589,6]
[328571349,1717546247213,-500.0,0.00029589,6]
[328571350,1717546247223,-500.0,0.00029589,6]
[328571351,1717546247233,-329.67,0.00029589,6]
[328571352,1717546247243,-500.0,0.00029589,6]
[328571353,1717546247252,-571.86,0.00029589,6]
[328571354,1717546247262,-500.0,0.00029589,6]
[328571355,1717546247271,-500.0,0.00029589,6]
[328571356,1717546247280,-500.0,0.00029589,6]
[328571357,1717546247291,-622.2,0.00029589,6]
[328571358,1717546247300,-500.0,0.00029589,6]
[328571359,1717546247309,-387.58,0.00029589,6]
[328571360,1717546247318,-500.0,0.00029589,6]
[328571361,1717546247327,-500.0,0.00029589,6]
[328571362,1717546247337,-500.0,0.00029589,6]
[328571363,1717546247346,-500.0,0.00029589,6]
[328571364,1717546247355,-500.0,0.00029589,6]
[328571365,1717546247364,-500.0,0.00029589,6]
[328571366,1717546247373,-500.0,0.00029589,6]
[328571367,1717546247383,-500.0,0.00029589,6]
[328571368,1717546247392,-500.0,0.00029589,6]
[328571369,1717546247401,-500.0,0.00029589,6]
[328571370,1717546247410,-500.0,0.00029589,6]
[328571371,1717546247420,-500.0,0.00029589,6]
[328571372,1717546247429,-500.0,0.00029589,6]
[328571373,1717546247437,-500.0,0.00029589,6]
[328571374,1717546247446,-500.0,0.00029589,6]
[328571375,1717546247455,-500.0,0.00029589,6]
[328571376,1717546247464,-500.0,0.00029589,6]
[328571377,1717546247474,-305.26033336,0.00029589,6]
[328571378,1717546247483,-500.0,0.00029589,6]
[328571379,1717546247492,-600.84,0.00029589,6]
[328571380,1717546247501,-500.0,0.00029589,6]
[328571381,1717546247510,-500.0,0.00029589,6]
[328571382,1717546247519,-500.0,0.00029589,6]
[328571383,1717546247528,-500.0,0.00029589,6]
[328571384,1717546247538,-617.79,0.00029589,6]
[328571385,1717546247548,-500.0,0.00029589,6]
[328571386,1717546247557,-500.0,0.00029589,6]
[328571387,1717546247569,-500.0,0.00029589,6]
[328571388,1717546247580,-500.0,0.00029589,6]
[328571389,1717546247590,-500.0,0.00029589,6]
[328571390,1717546247600,-500.0,0.00029589,6]
[328571391,1717546247609,-500.0,0.00029589,6]
[328571392,1717546247619,-500.0,0.00029589,6]
[328571393,1717546247630,-500.0,0.00029589,6]
[328571394,1717546247639,-500.0,0.00029589,6]
[328571395,1717546247649,-500.0,0.00029589,6]
[328571396,1717546247658,-500.0,0.00029589,6]
[328571397,1717546247667,-500.0,0.00029589,6]
[328571398,1717546247676,-500.0,0.00029589,6]
[328571399,1717546247685,-500.0,0.00029589,6]
[328571400,1717546247694,-500.0,0.00029589,6]
[328571401,1717546247703,-500.0,0.00029589,6]
[328571402,1717546247712,-500.0,0.00029589,6]
[328571403,1717546247721,-500.0,0.00029589,6]
[328571404,1717546247730,-500.0,0.00029589,6]
[328571405,1717546247739,-500.0,0.00029589,6]
[328571406,1717546247749,-500.0,0.00029589,6]
[328571407,1717546247758,-259.61,0.00029589,6]
[328571408,1717546247767,-500.0,0.00029589,6]
[328571409,1717546247777,-500.0,0.00029589,6]
[328571410,1717546247787,-500.0,0.00029589,6]
[328571411,1717546247796,-500.0,0.00029589,6]
[328571412,1717546247805,-500.0,0.00029589,6]
[328571413,1717546247815,-500.0,0.00029589,6]
[328571414,1717546247824,-500.0,0.00029589,6]
[328571415,1717546247833,-553.82101091,0.00029589,6]
[328571416,1717546247844,-1000.0,0.00029589,6]
[328571417,1717546247853,-500.0,0.00029589,6]
[328571418,1717546247862,-500.0,0.00029589,6]
[328571419,1717546247872,-500.0,0.00029589,6]
[328571420,1717546247881,-500.0,0.00029589,6]
[328571421,1717546247891,-500.0,0.00029589,6]
[328571422,1717546247900,-258.03444462,0.00029589,6]
[328571423,1717546247909,-235.93857792,0.00029589,6]
[328571424,1717546247918,-422.24,0.00029589,6]
[328571425,1717546247928,-500.0,0.00029589,6]
[328571426,1717546247937,-255.86995385,0.00029589,6]
[328571427,1717546247946,-500.0,0.00029589,6]
[328571428,1717546247956,-500.0,0.00029589,6]
[328571429,1717546247969,-500.0,0.00029589,6]
[328571430,1717546247979,-500.0,0.00029589,6]
[328571431,1717546247988,-500.0,0.00029589,6]
[328571432,1717546247998,-979.47002797,0.00029589,2]
[328571433,1717546248009,-500.0,0.00029589,2]
[328571434,1717546248018,-500.0,0.00029589,2]
[328571435,1717546248028,-500.0,0.00029589,2]
[328571436,1717546248039,-500.0,0.00029589,2]
[328571437,1717546248050,-500.0,0.00029589,6]
[328571438,1717546248059,-160.4,0.00029589,6]
[328571439,1717546248068,-500.0,0.00029589,6]
[328571440,1717546248077,-500.0,0.00029589,6]
[328571441,1717546248086,-500.0,0.00029589,6]
[328571442,1717546248095,-500.0,0.00029589,6]
[328571443,1717546248104,-500.0,0.00029589,6]
[328571444,1717546248113,-500.0,0.00029589,6]
[328571445,1717546248122,-500.0,0.00029589,6]
[328571446,1717546248132,-500.0,0.00029589,6]
[328571447,1717546248142,-500.0,0.00029589,6]
[328571448,1717546248151,-500.0,0.00029589,6]
[328571449,1717546248160,-500.0,0.00029589,6]
[328571450,1717546248169,-500.0,0.00029589,6]
[328571451,1717546248178,-500.0,0.00029589,6]
[328571452,1717546248187,-500.0,0.00029589,6]
[328571453,1717546248196,-500.0,0.00029589,6]
[328571454,1717546248205,-594.23,0.00029589,6]
[328571455,1717546248214,-446.13,0.00029589,6]
[328571456,1717546248223,-500.0,0.00029589,6]
[328571457,1717546248233,-500.0,0.00029589,6]
[328571458,1717546248242,-500.0,0.00029589,6]
[328571459,1717546248251,-500.0,0.00029589,6]
[328571460,1717546248261,-500.0,0.00029589,6]
[328571461,1717546248270,-500.0,0.00029589,6]
[328571462,1717546248279,-441.42,0.00029589,6]
[328571463,1717546248290,-500.0,0.00029589,6]
[328571464,1717546248299,-500.0,0.00029589,6]
[328571465,1717546248308,-500.0,0.00029589,6]
[328571466,1717546248317,-500.0,0.00029589,6]
[328571467,1717546248326,-500.0,0.00029589,6]
[328571468,1717546248335,-500.0,0.00029589,6]
[328571469,1717546248344,-500.0,0.00029589,6]
[328571470,1717546248353,-193.86,0.00029589,6]
[328571471,1717546248362,-500.0,0.00029589,6]
[328571472,1717546248371,-500.0,0.00029589,6]
[328571473,1717546248380,-500.0,0.00029589,6]
[328571474,1717546248389,-617.97,0.00029589,6]
[328571475,1717546248398,-500.0,0.00029589,6]
[328571476,1717546248407,-500.0,0.00029589,6]
[328571477,1717546248416,-500.0,0.00029589,6]
[328571478,1717546248426,-500.0,0.00029589,6]
[328571479,1717546248435,-604.71,0.00029589,6]
[328571480,1717546248444,-500.0,0.00029589,6]
[328571481,1717546248452,-500.0,0.00029589,6]
[328571482,1717546248461,-500.0,0.00029589,6]
[328571483,1717546248471,-500.0,0.00029589,6]
[328571484,1717546248480,-500.0,0.00029589,6]
[328571485,1717546248488,-500.0,0.00029589,6]
[328571486,1717546248497,-500.0,0.00029589,6]
[328571487,1717546248506,-356.51377485,0.00029589,6]
[328571488,1717546248515,-500.0,0.00029589,6]
[328571489,1717546248524,-500.0,0.00029589,6]
[328571490,1717546248533,-573.68,0.00029589,6]
[328571491,1717546248542,-257.34,0.00029589,6]
[328571492,1717546248551,-500.0,0.00029589,6]
[328571493,1717546248560,-500.0,0.00029589,6]
[328571494,1717546248569,-402.55,0.00029589,6]
[328571495,1717546248579,-500.0,0.00029589,6]
[328571496,1717546248588,-500.0,0.00029589,6]
[328571497,1717546248597,-500.0,0.00029589,6]
[328571498,1717546248606,-421.14,0.00029589,6]
[328571499,1717546248615,-500.0,0.00029589,6]
[328571500,1717546248624,-546.13871723,0.00029589,6]
[328571501,1717546248634,-500.0,0.00029589,6]
[328571502,1717546248643,-500.0,0.00029589,6]
[328571503,1717546248652,-500.0,0.00029589,6]
[328571504,1717546248661,-500.0,0.00029589,6]
[328571505,1717546248670,-592.6,0.00029589,6]
[328571506,1717546248679,-500.0,0.00029589,6]
[328571507,1717546248688,-623.29,0.00029589,6]
[328571508,1717546248698,-500.0,0.00029589,6]
[328571509,1717546248706,-500.0,0.00029589,6]
[328571510,1717546248716,-386.6,0.00029589,6]
[328571511,1717546248725,-500.0,0.00029589,6]
[328571512,1717546248734,-631.57,0.00029589,6]
[328571513,1717546248744,-500.0,0.00029589,6]
[328571514,1717546248753,-500.0,0.00029589,6]
[328571515,1717546248762,-500.0,0.00029589,6]
[328571516,1717546248772,-500.0,0.00029589,6]
[328571517,1717546248781,-500.0,0.00029589,6]
[328571518,1717546248791,-500.0,0.00029589,6]
[328571519,1717546248800,-500.0,0.00029589,6]
[328571520,1717546248810,-500.0,0.00029589,6]
[328571521,1717546248819,-500.0,0.00029589,6]
[328571522,1717546248828,-500.0,0.00029589,6]
[328571523,1717546248837,-500.0,0.00029589,6]
[328571524,1717546248846,-500.0,0.00029589,6]
[328571525,1717546248856,-520.2,0.00029589,6]
[328571526,1717546248865,-500.0,0.00029589,6]
[328571527,1717546248874,-500.0,0.00029589,6]
[328571528,1717546248883,-500.0,0.00029589,6]
[328571529,1717546248892,-500.0,0.00029589,6]
[328571530,1717546248901,-500.0,0.00029589,6]
[328571531,1717546248910,-500.0,0.00029589,6]
[328571532,1717546248919,-500.0,0.00029589,6]
[328571533,1717546249085,-500.0,0.00029589,6]
[328571534,1717546249094,-500.0,0.00029589,6]
[328571535,1717546249104,-500.0,0.00029589,6]
[328571536,1717546249113,-500.0,0.00029589,6]
[328571537,1717546249122,-500.0,0.00029589,6]
[328571538,1717546249132,-500.0,0.00029589,6]
[328571539,1717546249141,-500.0,0.00029589,6]
[328571540,1717546249150,-500.0,0.00029589,6]
[328571541,1717546249159,-500.0,0.00029589,6]
[328571542,1717546249168,-500.0,0.00029589,6]
[328571543,1717546249178,-500.0,0.00029589,6]
[328571544,1717546249187,-500.0,0.00029589,6]
[328571545,1717546249196,-500.0,0.00029589,6]
[328571546,1717546249205,-500.0,0.00029589,6]
[328571547,1717546249214,-500.0,0.00029589,6]
[328571548,1717546249223,-158.64,0.00029589,6]
[328571549,1717546249233,-500.0,0.00029589,6]
[328571550,1717546249241,-500.0,0.00029589,6]
[328571551,1717546249251,-500.0,0.00029589,6]
[328571552,1717546249261,-500.0,0.00029589,6]
[328571553,1717546249270,-500.0,0.00029589,6]
[328571554,1717546249279,-500.0,0.00029589,6]
[328571555,1717546249289,-500.0,0.00029589,6]
[328571556,1717546249298,-500.0,0.00029589,6]
[328571557,1717546249307,-500.0,0.00029589,6]
[328571558,1717546249316,-500.0,0.00029589,6]
[328571559,1717546249325,-500.0,0.00029589,6]
[328571560,1717546249334,-296.53,0.00029589,6]
[328571561,1717546249343,-500.0,0.00029589,6]
[328571562,1717546249353,-500.0,0.00029589,6]
[328571563,1717546249362,-500.0,0.00029589,6]
[328571564,1717546249372,-500.0,0.00029589,6]
[328571565,1717546249381,-500.0,0.00029589,6]
[328571566,1717546249390,-500.0,0.00029589,6]
[328571567,1717546249399,-500.0,0.00029589,6]
[328571568,1717546249408,-500.0,0.00029589,6]
[328571569,1717546249417,-500.0,0.00029589,6]
[328571570,1717546249426,-500.0,0.00029589,6]
[328571571,1717546249435,-500.0,0.00029589,6]
[328571572,1717546249445,-500.0,0.00029589,6]
[328571573,1717546249454,-1296.32,0.00029589,6]
[328571574,1717546249463,-1296.32,0.00029589,6]
[328571575,1717546249472,-500.0,0.00029589,6]
[328571576,1717546249481,-1296.32,0.00029589,6]
[328571577,1717546249490,-500.0,0.00029589,6]
[328571578,1717546249499,-1296.32,0.00029589,6]
[328571579,1717546249508,-500.0,0.00029589,6]
[328571580,1717546249518,-500.0,0.00029589,6]
[328571581,1717546249527,-500.0,0.00029589,6]
[328571582,1717546249536,-500.0,0.00029589,6]
[328571583,1717546249545,-500.0,0.00029589,6]
[328571584,1717546249554,-500.0,0.00029589,6]
[328571585,1717546249563,-500.0,0.00029589,6]
[328571586,1717546249573,-500.0,0.00029589,6]
[328571587,1717546249582,-500.0,0.00029589,6]
[328571588,1717546249591,-500.0,0.00029589,6]
[328571589,1717546249599,-411.97,0.00029589,6]
[328571590,1717546249608,-597.79,0.00029589,6]
[328571591,1717546249618,-597.79,0.00029589,6]
[328571592,1717546249627,-597.79,0.00029589,6]
[328571593,1717546249636,-597.79,0.00029589,6]
[328571594,1717546249645,-710.73,0.00029589,6]
[328571595,1717546249654,-710.73,0.00029589,6]
[328571596,1717546249663,-710.73,0.00029589,6]
[328571597,1717546249671,-710.73,0.00029589,6]
[328571598,1717546249680,-1015.84,0.00029589,6]
[328571599,1717546249690,-1015.84,0.00029589,6]
[328571600,1717546249699,-1015.84,0.00029589,6]
[328571601,1717546249708,-1015.84,0.00029589,6]
[328571602,1717546249717,-1519.83,0.00029589,6]
[328571603,1717546249726,-1519.83,0.00029589,6]
[328571604,1717546249735,-1519.83,0.00029589,6]
[328571605,1717546249744,-1519.83,0.00029589,6]
[328571606,1717546249754,-500.0,0.00029589,6]
[328571607,1717546249763,-500.0,0.00029589,6]
[328571608,1717546249773,-500.0,0.00029589,6]
[328571609,1717546249782,-500.0,0.00029589,6]
[328571610,1717546249793,-500.0,0.00029589,6]
[328571611,1717546249802,-500.0,0.00029589,6]
[328571612,1717546249810,-500.0,0.00029589,6]
[328571613,1717546249820,-500.0,0.00029589,6]
[328571614,1717546249829,-579.78,0.00029589,6]
[328571615,1717546249838,-579.78,0.00029589,6]
[328571616,1717546249849,-579.78,0.00029589,6]
[328571617,1717546249858,-579.78,0.00029589,6]
[328571618,1717546249868,-947.06,0.00029589,6]
[328571619,1717546249877,-947.06,0.00029589,6]
[328571620,1717546249886,-947.06,0.00029589,6]
[328571621,1717546249895,-947.06,0.00029589,6]
[328571622,1717546249904,-500.0,0.00029589,6]
[328571623,1717546249913,-442.6,0.00029589,6]
[328571624,1717546249922,-500.0,0.00029589,6]
[328571625,1717546249932,-500.0,0.00029589,6]
[328571626,1717546249942,-500.0,0.00029589,6]
[328571627,1717546249952,-437.11,0.00029589,6]
[328571628,1717546249961,-500.0,0.00029589,6]
[328571629,1717546249970,-500.0,0.00029589,6]
[328571630,1717546249985,-500.0,0.00029589,6]
[328571631,1717546249993,-500.0,0.00029589,6]
[328571632,1717546250003,-500.0,0.00029589,6]
[328571633,1717546250013,-500.0,0.00029589,6]
[328571634,1717546250023,-500.0,0.00029589,6]
[328571635,1717546250034,-500.0,0.00029589,6]
[328571636,1717546250044,-500.0,0.00029589,6]
[328571637,1717546250054,-500.0,0.00029589,6]
[328571638,1717546250063,-500.0,0.00029589,6]
[328571639,1717546250071,-500.0,0.00029589,6]
[328571640,1717546250080,-500.0,0.00029589,6]
[328571641,1717546250090,-500.0,0.00029589,6]
[328571642,1717546250100,-500.0,0.00029589,6]
[328571643,1717546250111,-500.0,0.00029589,6]
[328571644,1717546250121,-507.65,0.00029589,6]
[328571645,1717546250130,-507.65,0.00029589,6]
[328571646,1717546250140,-507.65,0.00029589,6]
[328571647,1717546250150,-507.65,0.00029589,6]
[328571648,1717546250160,-539.38,0.00029589,6]
[328571649,1717546250169,-539.38,0.00029589,6]
[328571650,1717546250180,-539.38,0.00029589,6]
[328571651,1717546250189,-539.38,0.00029589,6]
[328571652,1717546250199,-500.0,0.00029589,6]
[328571653,1717546250209,-183.64,0.00029589,6]
[328571654,1717546250220,-500.0,0.00029589,6]
[328571655,1717546250229,-500.0,0.00029589,6]
[328571656,1717546250239,-500.0,0.00029589,6]
[328571657,1717546250250,-500.0,0.00029589,6]
[328571658,1717546250260,-500.0,0.00029589,6]
[328571659,1717546250269,-500.0,0.00029589,6]
[328571660,1717546250278,-500.0,0.00029589,6]
[328571661,1717546250287,-500.0,0.00029589,6]
[328571662,1717546250297,-846.12,0.00029589,6]
[328571663,1717546250306,-846.12,0.00029589,6]
[328571664,1717546250316,-846.12,0.00029589,6]
[328571665,1717546250325,-846.12,0.00029589,6]
[328571666,1717546250334,-1849.47,0.00029589,6]
[328571667,1717546250344,-500.0,0.00029589,6]
[328571668,1717546250353,-1849.47,0.00029589,6]
[328571669,1717546250363,-500.0,0.00029589,6]
[328571670,1717546250373,-1849.47,0.00029589,6]
[328571671,1717546250383,-500.0,0.00029589,6]
[328571672,1717546250392,-1849.47,0.00029589,6]
[328571673,1717546250403,-579.03,0.00029589,6]
[328571674,1717546250413,-500.0,0.00029589,6]
[328571675,1717546250423,-500.0,0.00029589,6]
[328571676,1717546250434,-500.0,0.00029589,6]
[328571677,1717546250443,-500.0,0.00029589,6]
[328571678,1717546250453,-500.0,0.00029589,6]
[328571679,1717546250462,-500.0,0.00029589,6]
[328571680,1717546250471,-500.0,0.00029589,6]
[328571681,1717546250480,-500.0,0.00029589,6]
[328571682,1717546250489,-500.0,0.00029589,6]
[328571683,1717546250499,-981.99,0.00029589,6]
[328571684,1717546250508,-500.0,0.00029589,6]
[328571685,1717546250517,-981.99,0.00029589,6]
[328571686,1717546250526,-500.0,0.00029589,6]
[328571687,1717546250534,-981.99,0.00029589,6]
[328571688,1717546250545,-436.85,0.00029589,6]
[328571689,1717546250554,-981.99,0.00029589,6]
[328571690,1717546250563,-500.0,0.00029589,6]
[328571691,1717546250572,-500.0,0.00029589,6]
[328571692,1717546250581,-500.0,0.00029589,6]
[328571693,1717546250590,-500.0,0.00029589,6]
[328571694,1717546250599,-500.0,0.00029589,6]
[328571695,1717546250608,-500.0,0.00029589,6]
[328571696,1717546250617,-500.0,0.00029589,6]
[328571697,1717546250626,-500.0,0.00029589,6]
[328571698,1717546250635,-500.0,0.00029589,6]
[328571699,1717546250644,-500.0,0.00029589,6]
[328571700,1717546250654,-500.0,0.00029589,6]
[328571701,1717546250664,-500.0,0.00029589,6]
[328571702,1717546250673,-4236.12,0.00029589,6]
[328571703,1717546250684,-4236.12,0.00029589,6]
[328571704,1717546250693,-4236.12,0.00029589,6]
[328571705,1717546250702,-4236.12,0.00029589,6]
[328571706,1717546250711,-500.0,0.00029589,6]
[328571707,1717546250720,-500.0,0.00029589,6]
[328571708,1717546250730,-151.0,0.00029589,7]
[328571709,1717546250739,-500.0,0.00029589,6]
[328571710,1717546250748,-151.0,0.00029589,7]
[328571711,1717546250757,-500.0,0.00029589,6]
[328571712,1717546250766,-151.0,0.00029589,7]
[328571713,1717546250775,-151.0,0.00029589,7]
[328571714,1717546250784,-500.0,0.00029589,6]
[328571715,1717546250795,-382.27,0.00029589,6]
[328571716,1717546250803,-790.49,0.00029589,6]
[328571717,1717546250812,-790.49,0.00029589,6]
[328571718,1717546250822,-151.0,0.00029589,7]
[328571719,1717546250831,-790.49,0.00029589,6]
[328571720,1717546250841,-790.49,0.00029589,6]
[328571721,1717546250851,-151.0,0.00029589,7]
[328571722,1717546250859,-151.0,0.00029589,7]
[328571723,1717546250869,-151.0,0.00029589,7]
[328571724,1717546250878,-500.0,0.00029589,6]
[328571725,1717546250888,-500.0,0.00029589,6]
[328571726,1717546250897,-500.0,0.00029589,6]
[328571727,1717546250907,-500.0,0.00029589,6]
[328571728,1717546250916,-1044.26,0.00029589,6]
[328571729,1717546250926,-500.0,0.00029589,6]
[328571730,1717546250935,-1044.26,0.00029589,6]
[328571731,1717546250945,-500.0,0.00029589,6]
[328571732,1717546250956,-1044.26,0.00029589,6]
[328571733,1717546250965,-500.0,0.00029589,6]
[328571734,1717546250974,-1044.26,0.00029589,6]
[328571735,1717546250987,-500.0,0.00029589,6]
[328571736,1717546250996,-500.0,0.00029589,6]
[328571737,1717546251005,-500.0,0.00029589,6]
[328571738,1717546251015,-500.0,0.00029589,6]
[328571739,1717546251024,-500.0,0.00029589,6]
[328571740,1717546251033,-500.0,0.00029589,6]
[328571741,1717546251043,-500.0,0.00029589,6]
[328571742,1717546251052,-500.0,0.00029589,6]
[328571743,1717546251061,-154.54684791,0.00029589,6]
[328571769,1717547432163,-365.16560104,0.0001711,2]
[328571770,1717547432173,-155.0,0.00017111,2]
[328571771,1717547432182,-163.60528045,0.00017112,2]
[328571772,1717547432193,-617.89471955,0.00017112,2]
[328571773,1717547432204,-620.48288013,0.00017113,2]
[328571774,1717547432214,-300.0,0.00017157,2]
[328571775,1717547432223,-564.69401449,0.00017259,2]
[328571776,1717547432232,-880.52,0.00017808,2]
[328571777,1717547432242,-411.38464796,0.00019,2]
[328571778,1717547432251,-499.99,0.00019197,2]
[328571779,1717547432260,-150.0,0.00019197,2]
[328571780,1717547432270,-2902.80542304,0.000192,2]
[328571781,1717547432282,-264.37658424,0.000192,2]
[328571782,1717547432293,-339.85299,0.000192,2]
[328571783,1717547432305,-382.42725188,0.000192,2]
[328571784,1717547432315,-113.91938112,0.0002,2]
[328571785,1717547432326,-44.99747795,0.0002,2]
[328571786,1717547432335,-226.54621656,0.000201,2]
[328571787,1717547432344,-155.0,0.00021116,2]
[328571788,1717547432353,-210.0,0.00021117,2]
[328571789,1717547432362,-93.81166804,0.000219,2]
[328571790,1717547432374,-906.18833196,0.000219,2]
[328571791,1717547432383,-172.91,0.00021918,2]
[328571792,1717547432392,-457.35791095,0.00022215,2]
[328571793,1717547432405,-150.95208905,0.00022215,2]
[328571794,1717547432415,-353.81286397,0.00023342,2]
[328571795,1717547432424,-686.286,0.0002336,2]
[328571796,1717547432433,-1951.82997046,0.0002336,2]
[328571797,1717547432447,-1913.03702954,0.0002336,2]
[328571798,1717547432457,-162.311,0.0002336,2]
[328571799,1717547432466,-440.0,0.0002336,2]
[328571800,1717547432476,-918.655,0.0002336,2]
[328571801,1717547432486,-196.44,0.00023643,2]
[328571802,1717547432495,-200.0,0.00023758,2]
[328571803,1717547432504,-291.37,0.00023805,2]
[328571804,1717547432514,-1027.37,0.00023853,2]
[328571805,1717547432523,-541.80210205,0.00023973,2]
[328571806,1717547432534,-424.55758257,0.00023974,2]
[328571807,1717547432551,-562.43544538,0.00023974,2]
[328571808,1717547432563,-1266.7972655,0.00023974,2]
[328571809,1717547432577,-875.59927975,0.00023974,2]
[328571810,1717547432587,-308.14008547,0.00023974,2]
[328571811,1717547432602,-14891.42473928,0.00023974,2]
[328571812,1717547432614,-5561.04560205,0.00023974,2]
[328571813,1717547432625,-250.0,0.00023985,2]
[328571814,1717547432635,-434.22143985,0.00024,2]
[328571815,1717547432645,-250.0,0.00024019,2]
[328571816,1717547432654,-250.0,0.0002407,2]
[328571817,1717547432663,-1000.0,0.00024077,2]
[328571818,1717547432672,-403.56,0.00024089,2]
[328571819,1717547432681,-166.91,0.00024187,2]
[328571820,1717547432691,-166.91,0.00024367,2]
[328571821,1717547432700,-161.37,0.00024384,2]
[328571823,1717547432709,-154.09,0.00024384,2]
[328571825,1717547432718,-156.9,0.00024384,2]
[328571826,1717547432727,-608.31,0.00024479,2]
[328571827,1717547432736,-166.91,0.00024547,2]
[328571828,1717547432745,-868.0,0.000247,2]
[328571829,1717547432754,-166.91,0.00024728,2]
[328571830,1717547432763,-406.61,0.00024795,2]
[328571831,1717547432772,-6789.47504739,0.000249,2]
[328571832,1717547432781,-166.91,0.00024908,2]
[328571833,1717547432790,-206.10388171,0.00025,2]
[328571834,1717547432802,-119.53772166,0.00025,2]
[328571835,1717547432811,-155.0,0.00025,2]
[328571836,1717547432821,-325.73352634,0.00025,2]
[328571837,1717547432830,-1275.47662783,0.00025,2]
[328571838,1717547432839,-1250.0,0.00025,2]
[328571839,1717547432848,-166.91,0.00025088,2]
[328571840,1717547432858,-337.03,0.00025205,2]
[328571841,1717547432867,-166.91,0.00025268,2]
[328571842,1717547432876,-167.0,0.00025308,2]
[328571843,1717547432885,-166.91,0.00025448,2]
[328571844,1717547432894,-4242.95340713,0.00025615,2]
[328571845,1717547432903,-163.37,0.0002589,2]
[328571846,1717547432913,-180.0,0.00026374,2]
[328571847,1717547432922,-1027.37,0.00026592,2]
[328571848,1717547432931,-608.31,0.00026743,2]
[328571849,1717547432941,-1300.0,0.00027,2]
[328571850,1717547432950,-1000.0,0.00027087,2]
[328571851,1717547432959,-370.35996809,0.0002739,2]
[328571852,1717547432968,-14.54966895,0.00027397,2]
[328571853,1717547432980,-152.45033105,0.00027397,2]
[328571854,1717547432990,-868.0,0.000274,2]
[328571855,1717547432999,-468.40220737,0.00028,2]
[328571856,1717547433008,-1256.0687,0.0002857,2]
[328571857,1717547433018,-257.6065,0.0002857,2]